bitfinex/quotes_SOLUSD_20250728
["timestamp","ask_amount","ask_price","bid_price","bid_amount"]
[1753728293635,0.62430595,185.39,185.38,3.16785848]
[1753728293950,0.76646752,185.39,185.38,3.16785848]
[1753728295030,0.76646752,185.39,185.38,3.84785848]
[1753728295247,0.76646752,185.39,185.38,3.16785848]
[1753728300334,0.03,185.42,185.38,10.44593729]
[1753728300533,0.03,185.42,185.41,9.76593729]
[1753728301037,0.03,185.42,185.41,10.43593729]
[1753728302451,0.03,185.42,185.41,15.82938963]
[1753728303049,0.03,185.42,185.41,22.12178963]
[1753728303540,0.03,185.42,185.41,22.66113486]
[1753728306557,0.03,185.46,185.45,3.16785848]
[1753728306865,0.67,185.54,185.51,3.16785848]
[1753728307063,0.28432314,185.51,185.5,39.7]
[1753728307372,0.95432314,185.51,185.5,49.46593729]
[1753728307551,0.28432314,185.51,185.5,49.46593729]
[1753728307753,0.03,185.52,185.5,49.46593729]
[1753728307954,26.03,185.52,185.51,6.59807881]
[1753728308150,26.03,185.52,185.51,9.76593729]
[1753728308151,0.03,185.52,185.51,9.76593729]
[1753728308463,0.03,185.52,185.51,10.43593729]
[1753728312778,0.03,185.52,185.51,49.44593729]
[1753728313073,0.7,185.52,185.51,3.16785848]
[1753728313293,0.7,185.52,185.51,42.84785848]
[1753728313489,0.03,185.52,185.51,42.84785848]
[1753728313653,0.03,185.52,185.51,49.42593729]
[1753728313850,0.03,185.52,185.51,50.09593729]
[1753728314858,0.03,185.52,185.51,56.02553676]
[1753728315472,0.03,185.52,185.51,10.30499178]
[1753728315675,0.03,185.52,185.51,42.82785848]
[1753728315879,0.03,185.52,185.51,3.16785848]
[1753728316182,0.7,185.52,185.51,42.82785848]
[1753728316889,0.03,185.52,185.51,50.09593729]
[1753728317770,0.03,185.52,185.51,49.42593729]
[1753728317986,0.03,185.52,185.51,49.40593729]
[1753728320073,0.03,185.52,185.51,3.16785848]
[1753728320296,0.28432314,185.51,185.5,3.16785848]
[1753728320492,8.03454633,185.51,185.5,39.62]
[1753728320670,0.48214438,185.51,185.5,6.59807881]
[1753728320867,0.03,185.52,185.51,9.35045848]
[1753728321177,0.03,185.6,185.59,9.76593729]
[1753728321671,0.7,185.6,185.59,3.16785848]
[1753728322190,6.08793103,185.6,185.59,9.76593729]
[1753728322573,6.37225417,185.6,185.59,9.76593729]
[1753728322980,6.08793103,185.6,185.59,9.76593729]
[1753728323167,6.37225417,185.6,185.59,3.16785848]
[1753728323364,6.37225417,185.6,185.59,9.76593729]
[1753728324593,6.37225417,185.6,185.59,3.16785848]
[1753728324796,6.37225417,185.6,185.58,3.16785848]
[1753728324975,0.67,185.59,185.58,3.16785848]
[1753728325895,0.95432314,185.59,185.56,3.16785848]
[1753728326073,1.43646752,185.58,185.55,3.16785848]
[1753728326273,0.28432314,185.56,185.55,3.16785848]
[1753728326585,0.95432314,185.56,185.55,3.16785848]
[1753728326773,0.28432314,185.56,185.55,3.16785848]
[1753728328080,12.18399966,185.56,185.52,3.16785848]
[1753728328399,16.42181916,185.53,185.52,3.16785848]
[1753728328577,6.8264314,185.53,185.51,3.16785848]
[1753728328773,0.67,185.52,185.51,3.16785848]
[1753728329501,6.1564314,185.53,185.51,3.16785848]
[1753728329502,5.67428702,185.53,185.51,3.16785848]
[1753728330069,6.34428702,185.53,185.51,3.16785848]
[1753728330284,6.34428702,185.53,185.52,3.16785848]
[1753728330470,6.34428702,185.53,185.51,3.16785848]
[1753728330798,0.48214438,185.56,185.52,11.41753214]
[1753728330982,5.38884827,185.57,185.55,3.16785848]
[1753728331186,5.38884827,185.57,185.53,3.16785848]
[1753728331187,28.70436049,185.56,185.53,3.16785848]
[1753728331386,0.28432314,185.52,185.51,3.16785848]
[1753728331591,0.97432314,185.52,185.5,3.16785848]
[1753728331894,0.97432314,185.52,185.51,3.16785848]
[1753728332198,0.97432314,185.52,185.49,39.58]
[1753728332199,0.69,185.51,185.49,42.74785848]
[1753728332508,0.97432314,185.5,185.47,3.16785848]
[1753728332679,0.97432314,185.5,185.49,3.16785848]
[1753728333212,0.97432314,185.5,185.48,3.16785848]
[1753728333389,0.97432314,185.5,185.49,3.16785848]
[1753728333584,0.28432314,185.5,185.49,3.16785848]
[1753728334105,0.28432314,185.5,185.46,39.58]
[1753728334106,0.28432314,185.5,185.48,3.16785848]
[1753728334290,0.69,185.49,185.48,3.16785848]
[1753728334489,5.39141686,185.48,185.47,3.16785848]
[1753728337014,40.73214438,185.54,185.52,3.16785848]
[1753728337317,0.69,185.54,185.51,3.16785848]
[1753728337608,1.17214438,185.53,185.5,42.72785848]
[1753728337810,0.76646752,185.53,185.5,39.56]
[1753728338112,0.28432314,185.5,185.48,39.56]
[1753728338315,1.45646752,185.5,185.48,3.16785848]
[1753728338502,26.28432314,185.49,185.48,3.16785848]
[1753728338813,32.36544934,185.49,185.48,3.16785848]
[1753728339011,32.36544934,185.49,185.46,42.72785848]
[1753728339229,0.69,185.48,185.46,42.72785848]
[1753728339387,0.69,185.48,185.47,3.16785848]
[1753728339593,31.67544934,185.49,185.47,3.16785848]
[1753728340082,31.67544934,185.49,185.46,39.56]
[1753728340083,31.67544934,185.49,185.48,3.16785848]
[1753728340289,31.67544934,185.49,185.46,42.72785848]
[1753728340511,31.67544934,185.49,185.46,3.16785848]
[1753728340711,32.36544934,185.49,185.46,3.16785848]
[1753728340907,155.07912137,185.56,185.51,3.16785848]
[1753728341135,15.50425181,185.55,185.51,3.16785848]
[1753728341308,0.14216157,185.54,185.51,3.16785848]
[1753728341512,26.0,185.53,185.5,3.16785848]
[1753728341727,0.97432314,185.52,185.5,3.16785848]
[1753728341925,11.91967652,185.51,185.47,42.70785848]
[1753728342123,0.69,185.5,185.47,42.70785848]
[1753728342937,0.48214438,185.51,185.5,3.16785848]
[1753728343120,26.0,185.53,185.52,3.16785848]
[1753728343327,5.38938291,185.55,185.52,3.16785848]
[1753728343531,5.67370605,185.55,185.54,3.16785848]
[1753728343838,0.28432314,185.54,185.52,3.16785848]
[1753728344028,0.28432314,185.54,185.53,3.16785848]
[1753728345132,17.59367304,185.54,185.51,3.16785848]
[1753728345333,0.03,185.52,185.51,3.16785848]
[1753728345932,0.72,185.52,185.5,42.70785848]
[1753728346530,0.72,185.52,185.5,3.16785848]
[1753728346933,0.28432314,185.5,185.48,3.16785848]
[1753728347347,11.51399966,185.5,185.47,42.70785848]
[1753728347521,0.28432314,185.48,185.47,42.70785848]
[1753728347731,0.97432314,185.48,185.47,39.54]
[1753728347939,0.28432314,185.48,185.47,3.16785848]
[1753728349466,5.67574,185.48,185.47,3.16785848]
[1753728349969,5.67574,185.48,185.46,3.22785848]
[1753728352048,12.20399966,185.47,185.46,0.06]
[1753728352248,28.98868363,185.47,185.46,0.06]
[1753728353139,26.0,185.44,185.42,0.06]
[1753728353347,54.29868363,185.43,185.42,0.06]
[1753728353636,28.98868363,185.43,185.42,0.06]
[1753728353838,68.50868363,185.43,185.42,0.06]
[1753728354434,0.76646752,185.43,185.42,0.06]
[1753728354646,26.28432314,185.43,185.42,3.22785848]
[1753728355338,49.63402211,185.43,185.42,0.06]
[1753728356261,60.38155425,185.43,185.42,0.06]
[1753728356566,66.05194406,185.43,185.42,0.06]
[1753728356743,68.70552744,185.43,185.42,0.06]
[1753728357444,43.06900711,185.39,185.38,3.22785848]
[1753728357635,53.81653925,185.39,185.38,3.22785848]
[1753728357831,38.20399966,185.39,185.38,3.22785848]
[1753728358187,26.76646752,185.39,185.38,3.22785848]
[1753728358472,37.51399966,185.39,185.38,3.22785848]
[1753728358635,38.20399966,185.39,185.38,3.22785848]
[1753728359283,43.59803385,185.39,185.38,3.22785848]
[1753728359569,32.16050171,185.39,185.38,3.22785848]
[1753728361668,43.58803385,185.39,185.38,3.22785848]
[1753728361831,49.62518568,185.39,185.38,3.22785848]
[1753728362033,60.37271782,185.39,185.38,3.22785848]
[1753728362434,26.14216157,185.39,185.38,3.22785848]
[1753728362665,26.14216157,185.39,185.38,3.93785848]
[1753728362836,26.28432314,185.39,185.38,3.93785848]
[1753728363453,55.75174251,185.39,185.38,0.06]
[1753728364168,56.23388689,185.39,185.38,0.06]
[1753728364787,49.62518568,185.39,185.38,0.06]
[1753728364967,56.23388689,185.39,185.38,0.06]
[1753728366454,49.62518568,185.39,185.38,0.06]
[1753728366656,56.23388689,185.39,185.38,0.06]
[1753728366855,56.23388689,185.39,185.36,0.06]
[1753728366856,166.06900711,185.38,185.36,0.06]
[1753728367065,93.82805247,185.37,185.36,0.06]
[1753728367386,94.50805247,185.37,185.36,0.06]
[1753728367676,99.90266864,185.37,185.36,0.06]
[1753728368880,73.90266864,185.37,185.36,0.06]
[1753728369557,77.87242963,185.37,185.36,0.06]
[1753728369959,26.0,185.35,185.34,0.06]
[1753728370255,80.5090178,185.35,185.34,0.06]
[1753728370450,81.1890178,185.35,185.34,0.06]
[1753728370663,37.06122412,185.35,185.34,0.06]
[1753728370979,0.28432314,185.35,185.34,0.06]
[1753728371153,11.06122412,185.35,185.34,0.06]
[1753728371579,16.45642239,185.35,185.34,0.06]
[1753728372388,33.92110636,185.35,185.34,0.06]
[1753728372589,17.06900711,185.34,185.33,0.06]
[1753728372757,71.97345893,185.34,185.33,0.06]
[1753728373079,71.97345893,185.34,185.32,0.06]
[1753728373282,0.28432314,185.29,185.28,0.06]
[1753728373583,76.69040425,185.29,185.28,0.06]
[1753728373798,80.65461624,185.29,185.27,0.2]
[1753728374079,0.28432314,185.27,185.26,1e-08]
[1753728374294,75.25596384,185.27,185.26,1e-08]
[1753728374455,75.25596384,185.27,185.21,0.2]
[1753728374456,166.06900711,185.26,185.21,0.2]
[1753728374663,38.62280907,185.24,185.23,1e-08]
[1753728374878,50.11039371,185.24,185.23,1e-08]
[1753728375379,50.79039371,185.24,185.23,1e-08]
[1753728375553,56.18879578,185.24,185.23,1e-08]
[1753728375958,84.8918948,185.24,185.23,1e-08]
[1753728376278,95.66879578,185.24,185.23,1e-08]
[1753728376984,16.78468397,185.22,185.21,1e-08]
[1753728377193,78.81349273,185.22,185.21,1e-08]
[1753728377687,84.89247772,185.22,185.21,1e-08]
[1753728378603,84.89247772,185.22,185.17,0.2]
[1753728378604,26.0,185.19,185.17,0.2]
[1753728378824,101.25170989,185.18,185.17,0.2]
[1753728379326,61.77170989,185.18,185.17,0.2]
[1753728379698,106.65186109,185.18,185.17,0.2]
[1753728380100,107.33186109,185.18,185.17,0.2]
[1753728380416,112.77634334,185.18,185.17,0.2]
[1753728380915,72.61634334,185.18,185.17,0.2]
[1753728381213,112.09634334,185.18,185.17,0.91]
[1753728381417,50.38717712,185.18,185.17,0.91]
[1753728381929,35.65202518,185.18,185.17,0.91]
[1753728382087,51.87395296,185.18,185.17,0.2]
[1753728382694,46.42892616,185.18,185.17,0.2]
[1753728382892,46.42892616,185.18,185.17,0.91]
[1753728383093,51.96420203,185.18,185.17,0.91]
[1753728383410,46.42892616,185.18,185.17,0.91]
[1753728384209,35.65202518,185.18,185.17,0.91]
[1753728384617,3.92321812,185.18,185.17,4.07785848]
[1753728384827,5.39935101,185.21,185.19,3.16785848]
[1753728384992,3.9234177,185.2,185.19,3.16785848]
[1753728385194,26.0,185.2,185.19,3.16785848]
[1753728385418,3.9234177,185.2,185.19,3.16785848]
[1753728385627,4.20774084,185.2,185.19,14.65475946]
[1753728385825,154.39835593,185.25,185.22,3.16785848]
[1753728386045,3.92194717,185.24,185.23,0.71]
[1753728387044,29.92194717,185.24,185.23,0.71]
[1753728387205,3.92194717,185.24,185.23,14.65475946]
[1753728387537,26.0,185.27,185.26,3.16785848]
[1753728387710,35.60621532,185.27,185.26,3.87785848]
[1753728388046,30.20868739,185.27,185.26,3.87785848]
[1753728388206,4.20868739,185.27,185.26,3.87785848]
[1753728388407,3.92436425,185.27,185.26,14.65475946]
[1753728388645,0.28432314,185.28,185.26,14.65475946]
[1753728388945,5.39700508,185.29,185.27,3.87785848]
[1753728389143,29.9251593,185.28,185.27,3.87785848]
[1753728389370,26.28432314,185.28,185.27,3.87785848]
[1753728389639,0.14216157,185.28,185.27,21.02465946]
[1753728389810,149.0,185.31,185.29,3.16785848]
[1753728390013,3.92821886,185.3,185.29,3.87785848]
[1753728390422,4.07038043,185.3,185.29,0.71]
[1753728390645,4.212542,185.3,185.29,14.65475946]
[1753728390843,16.17209925,185.35,185.31,3.16785848]
[1753728391146,0.28432314,185.33,185.32,0.71]
[1753728391316,3.93174986,185.33,185.32,0.71]
[1753728391517,26.28432314,185.33,185.32,0.71]
[1753728391847,33.86619008,185.33,185.32,0.71]
[1753728392311,0.28432314,185.32,185.31,3.16785848]
[1753728392516,4.216073,185.32,185.31,3.87785848]
[1753728393875,10.86043383,185.35,185.31,14.65475946]
[1753728394079,10.86043383,185.35,185.33,3.16785848]
[1753728394080,4.22202451,185.34,185.33,3.16785848]
[1753728394243,4.22202451,185.34,185.33,3.08266574]
[1753728394445,4.22202451,185.34,185.33,3.79266574]
[1753728395045,4.22202451,185.34,185.33,3.08266574]
[1753728395273,8.83244022,185.34,185.33,3.08266574]
[1753728395665,8.16244022,185.34,185.33,3.08266574]
[1753728395869,13.55792959,185.34,185.33,3.08266574]
[1753728396357,17.10717108,185.34,185.33,3.08266574]
[1753728397072,28.55346887,185.34,185.31,3.08266574]
[1753728397402,0.28432314,185.34,185.33,3.08266574]
[1753728397674,3.94557106,185.34,185.33,14.56956672]
[1753728397883,3.94600181,185.36,185.33,14.56956672]
[1753728398172,0.03,185.4,185.39,3.08266574]
[1753728398358,3.97688474,185.4,185.39,3.79266574]
[1753728398553,7.92376948,185.4,185.39,14.56956672]
[1753728398963,3.97688474,185.4,185.39,14.56956672]
[1753728399171,0.03,185.4,185.39,14.56956672]
[1753728401384,0.03,185.4,185.39,13.85956672]
[1753728401597,0.31432314,185.4,185.39,13.85956672]
[1753728401773,4.26204496,185.4,185.39,13.85956672]
[1753728402173,4.26108186,185.4,185.39,13.85956672]
[1753728402607,9.65482511,185.4,185.39,3.08266574]
[1753728403011,4.26108186,185.4,185.39,3.08266574]
[1753728403498,0.31432314,185.4,185.39,14.56956672]
[1753728404399,0.31432314,185.4,185.39,13.85956672]
[1753728404694,5.70806639,185.4,185.39,3.08266574]
[1753728405975,63.88561606,185.4,185.34,3.08266574]
[1753728406190,0.28432314,185.37,185.36,3.08266574]
[1753728406783,26.28432314,185.37,185.36,3.08266574]
[1753728407101,0.28432314,185.36,185.35,3.08266574]
[1753728407690,11.06122412,185.36,185.35,3.08266574]
[1753728408007,16.45613132,185.36,185.35,3.08266574]
[1753728408412,16.45613132,185.36,185.34,3.08266574]
[1753728408413,17.12613132,185.36,185.34,3.08266574]
[1753728408712,17.12613132,185.36,185.32,3.08266574]
[1753728408713,11.44690098,185.35,185.32,3.08266574]
[1753728408915,11.06122412,185.33,185.32,3.08266574]
[1753728409091,0.28432314,185.32,185.31,3.08266574]
[1753728409884,11.06122412,185.32,185.31,3.08266574]
[1753728410117,16.45729577,185.32,185.31,3.08266574]
[1753728412509,42.17233237,185.35,185.33,3.08266574]
[1753728412715,31.39543139,185.35,185.33,3.08266574]
[1753728413013,42.45665551,185.35,185.34,3.08266574]
[1753728413193,43.12665551,185.35,185.34,3.08266574]
[1753728413393,0.28432314,185.34,185.33,3.08266574]
[1753728414492,36.80690098,185.36,185.35,3.08266574]
[1753728414493,0.03,185.36,185.35,3.08266574]
[1753728414705,0.03,185.36,185.35,13.85956672]
[1753728414896,0.03,185.36,185.35,14.56956672]
[1753728415748,0.03,185.36,185.35,22.87848654]
[1753728419828,0.03,185.36,185.35,22.33896672]
[1753728420329,0.03,185.36,185.35,13.85956672]
[1753728420713,0.03,185.36,185.35,14.56956672]
[1753728421033,0.03,185.36,185.35,20.50428481]
[1753728422239,0.03,185.4,185.39,3.08266574]
[1753728422415,0.03,185.4,185.39,59.77316672]
[1753728422746,0.03,185.4,185.39,59.75316672]
[1753728422919,0.31432314,185.4,185.39,53.17956672]
[1753728423356,1.02432314,185.4,185.39,53.17956672]
[1753728423680,1.02432314,185.4,185.39,13.85956672]
[1753728423852,1.02432314,185.4,185.39,3.08266574]
[1753728424056,1.02432314,185.4,185.38,3.08266574]
[1753728424251,0.71,185.39,185.37,3.08266574]
[1753728424482,26.0,185.37,185.34,3.08266574]
[1753728424803,0.28432314,185.34,185.33,3.08266574]
[1753728424954,26.99432314,185.34,185.33,3.08266574]
[1753728425379,35.69278536,185.4,185.33,3.08266574]
[1753728425380,26.0,185.37,185.36,3.08266574]
[1753728425579,26.71,185.37,185.36,3.08266574]
[1753728425962,32.10461617,185.37,185.36,3.08266574]
[1753728426576,32.38893931,185.37,185.36,3.08266574]
[1753728428373,0.03,185.4,185.39,3.08266574]
[1753728428788,0.17216157,185.4,185.39,3.08266574]
[1753728428991,0.03,185.4,185.39,13.85956672]
[1753728429177,3.99843988,185.4,185.39,13.85956672]
[1753728429375,0.31432314,185.4,185.39,13.85956672]
[1753728429574,4.28301591,185.4,185.39,13.85956672]
[1753728430171,8.25512625,185.4,185.39,13.85956672]
[1753728430790,13.6488695,185.4,185.39,13.85956672]
[1753728430993,14.3588695,185.4,185.39,3.08266574]
[1753728431171,8.96512625,185.4,185.39,3.08266574]
[1753728431369,8.25512625,185.4,185.39,3.08266574]
[1753728432284,11.83321186,185.4,185.39,3.08266574]
[1753728433474,11.83321186,185.4,185.39,13.85956672]
[1753728433666,7.97080311,185.4,185.39,13.85956672]
[1753728433867,3.99869277,185.4,185.39,14.53956672]
[1753728434292,0.03,185.4,185.39,14.53956672]
[1753728435708,0.03,185.4,185.39,13.85956672]
[1753728437382,0.03,185.4,185.39,14.53956672]
[1753728437695,0.03,185.4,185.39,13.85956672]
[1753728438278,0.03,185.4,185.39,14.53956672]
[1753728438479,0.03,185.4,185.39,53.81956672]
[1753728438881,0.03,185.4,185.39,49.64760877]
[1753728440691,0.03,185.4,185.39,48.96760877]
[1753728441889,0.74,185.4,185.39,42.36266574]
[1753728442296,0.03,185.4,185.39,42.36266574]
[1753728442479,0.03,185.4,185.39,48.96760877]
[1753728443293,0.03,185.4,185.39,49.64760877]
[1753728443512,0.03,185.4,185.39,55.58104637]
[1753728444587,0.03,185.4,185.39,55.04164296]
[1753728444799,0.03,185.4,185.39,53.80687044]
[1753728445386,0.03,185.4,185.39,53.12687044]
[1753728446094,0.03,185.4,185.39,53.80687044]
[1753728446493,0.03,185.4,185.39,59.20090463]
[1753728447098,0.03,185.4,185.39,53.80687044]
[1753728448695,0.03,185.4,185.39,59.20090463]
[1753728449712,0.74,185.4,185.39,53.08687044]
[1753728449916,0.74,185.4,185.39,42.32266574]
[1753728450117,26.14216157,185.39,185.37,3.08266574]
[1753728450297,0.28432314,185.37,185.36,3.14266574]
[1753728450497,17.15314401,185.37,185.36,0.06]
[1753728450697,6.38893931,185.37,185.36,3.14266574]
[1753728451716,17.15314401,185.37,185.36,0.06]
[1753728452913,20.73418821,185.37,185.36,0.06]
[1753728453297,17.15314401,185.37,185.36,0.06]
[1753728453710,6.38893931,185.37,185.36,3.14266574]
[1753728454019,0.28432314,185.37,185.36,3.14266574]
[1753728454208,0.14216157,185.37,185.36,3.14266574]
[1753728454919,0.28432314,185.37,185.36,3.14266574]
[1753728455119,43.12314401,185.37,185.36,0.06]
[1753728455301,33.90782798,185.37,185.36,0.06]
[1753728455495,50.97748118,185.37,185.32,3.14266574]
[1753728455718,27.83321181,185.33,185.32,0.06]
[1753728456104,28.51321181,185.33,185.32,0.06]
[1753728456308,26.0,185.3,185.27,3.08266574]
[1753728456505,5.68155975,185.28,185.27,3.08266574]
[1753728456713,16.44576445,185.28,185.25,3.14266574]
[1753728456899,36.7642047,185.26,185.25,0.06]
[1753728457098,26.0,185.26,185.25,3.14266574]
[1753728457315,26.68,185.26,185.25,3.14266574]
[1753728458234,26.68,185.26,185.25,0.06]
[1753728458432,37.4442047,185.26,185.25,0.06]
[1753728458603,43.12634712,185.26,185.25,0.06]
[1753728458808,43.12634712,185.26,185.25,3.14266574]
[1753728459635,32.36214242,185.26,185.25,3.14266574]
[1753728460314,43.12634712,185.26,185.25,0.06]
[1753728460625,59.91103109,185.26,185.25,0.06]
[1753728461006,17.06900711,185.25,185.2,3.08266574]
[1753728461206,0.28432314,185.22,185.2,3.08266574]
[1753728461715,26.28432314,185.2,185.19,42.38266574]
[1753728462926,0.28432314,185.2,185.19,42.38266574]
[1753728464029,26.28432314,185.2,185.19,42.38266574]
[1753728465809,0.68,185.26,185.24,3.08266574]
[1753728466006,149.0,185.28,185.27,3.08266574]
[1753728466206,11.4442047,185.28,185.24,3.08266574]
[1753728466437,0.14216157,185.24,185.22,3.08266574]
[1753728466636,0.28432314,185.22,185.21,42.32266574]
[1753728467615,5.68330813,185.22,185.21,42.32266574]
[1753728467827,6.36330813,185.22,185.21,42.32266574]
[1753728468033,17.12751283,185.22,185.21,42.32266574]
[1753728468336,17.12751283,185.22,185.21,3.08266574]
[1753728468533,0.28432314,185.22,185.21,3.08266574]
[1753728468834,0.28432314,185.25,185.24,3.08266574]
[1753728469043,31.39811066,185.25,185.24,3.08266574]
[1753728469337,0.14216157,185.24,185.23,3.08266574]
[1753728469533,0.14216157,185.24,185.23,3.77266574]
[1753728469942,31.5399909,185.26,185.25,3.08266574]
[1753728470144,5.68215247,185.26,185.25,3.08266574]
[1753728470433,0.14216157,185.24,185.23,3.08266574]
[1753728471036,16.44692991,185.24,185.23,3.08266574]
[1753728471229,5.68272521,185.24,185.23,3.08266574]
[1753728471540,0.28432314,185.23,185.22,42.30266574]
[1753728472043,6.36301665,185.23,185.22,42.30266574]
[1753728472419,5.68301665,185.23,185.22,42.30266574]
[1753728472619,26.28432314,185.23,185.22,42.30266574]
[1753728472842,43.12722135,185.23,185.21,3.08266574]
[1753728473141,0.28432314,185.21,185.2,3.08266574]
[1753728473439,11.72852784,185.21,185.19,42.36266574]
[1753728473625,0.28432314,185.21,185.2,3.08266574]
[1753728474325,0.28432314,185.21,185.2,3.77266574]
[1753728474949,5.68359963,185.21,185.19,42.36266574]
[1753728475124,5.68359963,185.21,185.2,3.08266574]
[1753728475782,16.44780433,185.21,185.2,3.08266574]
[1753728476055,26.0,185.2,185.19,3.14266574]
[1753728476351,42.84377273,185.2,185.19,3.14266574]
[1753728478029,43.12809587,185.2,185.19,3.14266574]
[1753728479971,42.44809587,185.2,185.19,3.14266574]
[1753728481647,43.11809587,185.2,185.19,0.06]
[1753728481859,63.8443677,185.2,185.19,0.06]
[1753728482768,17.06900711,185.19,185.18,0.06]
[1753728482966,0.28432314,185.19,185.18,0.06]
[1753728483145,31.39956803,185.2,185.19,3.08266574]
[1753728483347,31.68389117,185.2,185.19,3.08266574]
[1753728483760,16.16202398,185.26,185.22,3.08266574]
[1753728484092,0.28432314,185.24,185.23,3.08266574]
[1753728484386,43.11692991,185.24,185.23,3.08266574]
[1753728484570,42.83260677,185.24,185.23,3.08266574]
[1753728484742,43.11692991,185.24,185.23,3.08266574]
[1753728485181,47.06286749,185.24,185.23,3.08266574]
[1753728485348,0.28432314,185.23,185.22,3.08266574]
[1753728485702,11.71852784,185.23,185.22,3.08266574]
[1753728486002,19.21341994,185.23,185.22,3.08266574]
[1753728486150,15.66426896,185.23,185.22,3.08266574]
[1753728486350,24.61242071,185.23,185.22,3.08266574]
[1753728486973,38.1091545,185.23,185.19,42.28266574]
[1753728487184,11.04852784,185.21,185.19,42.28266574]
[1753728487479,0.28432314,185.19,185.18,0.06]
[1753728487774,11.04852784,185.19,185.18,0.06]
[1753728487980,15.67618324,185.19,185.18,0.06]
[1753728488294,4.24197854,185.19,185.18,0.06]
[1753728488484,5.39837613,185.25,185.23,3.08266574]
[1753728488779,5.39723661,185.28,185.26,3.08266574]
[1753728489070,7.92072079,185.27,185.26,3.08266574]
[1753728489274,29.95998003,185.27,185.26,3.08266574]
[1753728489461,33.5174835,185.27,185.26,3.08266574]
[1753728489652,13.19933457,185.27,185.26,3.08266574]
[1753728489988,3.95998003,185.27,185.26,14.56687044]
[1753728490173,8.08155291,185.29,185.28,3.08266574]
[1753728490375,12.33179451,185.29,185.28,3.08266574]
[1753728490549,0.28432314,185.28,185.27,42.26266574]
[1753728490750,4.2502416,185.28,185.27,42.26266574]
[1753728490949,4.2502416,185.28,185.27,53.74687044]
[1753728491377,3.96591846,185.28,185.27,53.74687044]
[1753728491586,0.03,185.29,185.27,53.74687044]
[1753728491750,0.03,185.29,185.28,14.56687044]
[1753728492276,0.03,185.29,185.28,23.1157941]
[1753728493276,4.44080533,185.34,185.33,3.08266574]
[1753728493450,7.55314876,185.34,185.33,47.1289641]
[1753728493964,3.97747508,185.34,185.33,47.1289641]
[1753728494351,3.97747508,185.34,185.33,52.52474459]
[1753728494556,0.03,185.37,185.33,59.14964459]
[1753728494758,0.03,185.37,185.36,10.7642047]
[1753728494956,4.01139928,185.37,185.36,49.9242047]
[1753728495156,4.01139928,185.37,185.36,50.6442047]
[1753728495568,0.03,185.37,185.36,50.6442047]
[1753728495872,0.03,185.37,185.36,57.6579119]
[1753728496082,0.03,185.4,185.36,74.98208659]
[1753728496271,0.03,185.4,185.39,10.7642047]
[1753728496480,0.03,185.4,185.39,49.9242047]
[1753728496791,0.03,185.4,185.39,50.6442047]
[1753728497468,0.03,185.4,185.39,10.7642047]
[1753728497779,0.03,185.4,185.39,50.6242047]
[1753728498559,0.03,185.4,185.39,49.9042047]
[1753728498759,0.03,185.4,185.39,51.16360811]
[1753728499474,0.03,185.4,185.39,56.5576423]
[1753728499682,0.03,185.4,185.39,51.16360811]
[1753728499882,0.03,185.4,185.39,56.5576423]
[1753728502410,0.03,185.41,185.39,62.6437423]
[1753728502569,0.03,185.41,185.4,11.4842047]
[1753728503079,0.03,185.44,185.41,16.78468397]
[1753728503388,0.03,185.44,185.43,16.15707532]
[1753728503767,0.03,185.44,185.43,16.87707532]
[1753728504887,0.03,185.44,185.43,33.66175929]
[1753728506063,0.03,185.44,185.43,16.87707532]
[1753728509904,0.03,185.44,185.43,10.7642047]
[1753728510211,0.03,185.44,185.43,49.8642047]
[1753728510913,0.7,185.44,185.43,49.8642047]
[1753728511089,0.03,185.44,185.43,49.8642047]
[1753728511291,0.75,185.44,185.43,49.8642047]
[1753728511478,0.03,185.44,185.43,49.8642047]
[1753728512810,0.75,185.44,185.43,49.8642047]
[1753728513601,0.28432314,185.43,185.42,39.08]
[1753728513816,1.00432314,185.43,185.42,39.08]
[1753728514326,0.03,185.44,185.42,49.8442047]
[1753728514487,0.03,185.44,185.43,10.7642047]
[1753728517288,0.75,185.44,185.42,39.08]
[1753728517491,11.5142047,185.44,185.42,39.08]
[1753728517710,11.76852784,185.43,185.41,39.08]
[1753728518012,0.28432314,185.39,185.37,0.06]
[1753728518351,5.67835733,185.39,185.38,39.06]
[1753728518924,6.39835733,185.39,185.38,39.06]
[1753728519223,26.0,185.4,185.38,49.8242047]